Cogmind - Beta 13 @@@ ROGUE MODE // 2024.06.03 @ 19:40:39 Player: Skergy Result: Destroyed by D-53 Grenadier with Mini Grenade Launcher Performance ------------- Evolutions (0) 0 Regions Visited (2) 400 Robots Destroyed (13) 65 Value Destroyed (431) 431 Prototype IDs (0) 0 Alien Tech Used (0) 0 Bonus (0) 0 TOTAL SCORE: 896 Bonus ------- None Cogmind --------- Core Integrity 0/250 Matter 279/300 Energy 100/100 System Corruption 1% Temperature Cool (0) Movement Core (200) Ox3 Location -10/Mines Parts ------- > --- POWER (1) -------- (None) > --- PROPULSION (2) --- (None) > --- UTILITY (2) ------ Medium Storage Unit > --- WEAPON (2) ------- (None) > --- INVENTORY (10) --- Ion Engine Ion Engine Aluminum Leg Aluminum Leg Flight Unit Targeting Computer Grenade Launcher Mining Laser Peak State ------------ > --- POWER ------------ Improved Ion Engine > --- PROPULSION ------- Light Treads Light Treads > --- UTILITY ---------- Medium Storage Unit Light Armor Plating > --- WEAPON ----------- Heavy Assault Rifle Bore Cannon > --- INVENTORY -------- Ion Engine Ion Engine Aluminum Leg Aluminum Leg Flight Unit Targeting Computer Grenade Launcher Mining Laser [Rating: 13] Favorites ----------- Power Improved Ion Engine Engine Improved Ion Engine Propulsion Light Treads Treads Light Treads Utility Small Storage Unit Device Improved Heat Sink Storage Small Storage Unit Protection Light Armor Plating Weapon Heavy Assault Rifle Energy Gun Medium Laser Ballistic Gun Heavy Assault Rifle Ballistic Cannon Bore Cannon Build | -11 -10 -10 ------- Run | Yrd Mat Min Slots Evolved . | . . . Power . | . . . Propulsion . | . . . Utility . | . . . Weapon . | . . . Parts Attached 17 | 6 . 11 Power 2 | 1 . 1 Engine 2 | 1 . 1 Core . | . . . Reactor . | . . . Propulsion 4 | 2 . 2 Treads 4 | 2 . 2 Leg . | . . . Wheel . | . . . Hover . | . . . Flight . | . . . Utility 4 | 1 . 3 Device 1 | . . 1 Storage 2 | 1 . 1 Processor . | . . . Hackware . | . . . Protection 1 | . . 1 Artifact . | . . . Weapon 7 | 2 . 5 Energy Gun 3 | 1 . 2 Energy Cannon . | . . . Ballistic Gun 3 | 1 . 2 Ballistic Cannon 1 | . . 1 Launcher . | . . . Special Weapon . | . . . Impact Weapon . | . . . Slashing Weapon . | . . . Piercing Weapon . | . . . Special Melee Weapon . | . . . Unidentified Prototypes . | . . . Parts Lost 11 | . . 11 Power 1 | . . 1 Propulsion 4 | . . 4 Utility 1 | . . 1 Weapon 5 | . . 5 Highest Loss Streak 7 | . . 7 To Critical Strikes . | . . . Average Slot Usage (%) 95 | . 85 97 Engine 14 | . 14 14 Treads 27 | . 28 27 Device 1 | . . 1 Storage 14 | . 14 14 Protection 9 | . . 11 Energy Gun 4 | . 14 2 Ballistic Gun 23 | . 14 25 Naked Turns . | . . . Heaviest Build 32 | 13 13 32 Greatest Support 40 | 40 40 40 Greatest Overweight (x) 5 | . . 5 Average Overweight (x) . | . . . Largest Inventory Capacity 10 | 8 8 10 Average Capacity 8 | 7 8 8 Most Carried 8 | 6 8 8 Average Carried 7 | 3 7 7 Final Capacity 10 | 8 8 10 Final Carried 8 | 6 8 8 Class Distribution -------------------- 67% | Scavenger-Mutant 32% | Mutant Dominant Class ---------------- Mutant | -10/Materials Scavenger-Mutant | -10/Mines Resources | -11 -10 -10 ----------- Run | Yrd Mat Min Matter Collected 426 | 260 25 141 Remotely . | . . . Salvage Created 499 | . 175 324 Parts 28 | . 9 19 Haulers Intercepted . | . . . Recyclers Shooed . | . . . Parts Field Recycled . | . . . Retrieved Matter . | . . . Parts Self-Destructed . | . . . Prevented . | . . . Kills | -11 -10 -10 ------- Run | Yrd Mat Min Combat Hostiles Destroyed 13 | . 4 9 Guns 13 | . 4 9 Classes Destroyed 3 | . 1 2 Swarmer 3 | . . 3 Grunt 8 | . 4 4 Sentry 2 | . . 2 Best Kill Streak 3 | . 2 3 Combat Bots Only 3 | . 2 3 Max Kills in Single Turn 1 | . 1 1 Gunslinging . | . . . Exploded . | . . . Melee . | . . . Uniques/NPCs Destroyed . | . . . Combat | -11 -10 -10 -------- Run | Yrd Mat Min Hostile Shots Fired 129 | . 25 104 Missed 37 | . 7 30 Damage Taken 1458 | . 239 1219 Core 260 | . 60 200 Absorbed by Shields . | . . . Core Remaining (%) 100 | 100 . . Volleys Fired 69 | . 25 44 Largest 2 | . 2 2 Hottest 105 | . 70 105 Shots Fired 123 | . 50 73 Gun 123 | . 50 73 Cannon . | . . . Launcher . | . . . Special . | . . . Kinetic 78 | . 25 53 Thermal 42 | . 25 17 Explosive . | . . . Electromagnetic 3 | . . 3 Robot Hit Streak 20 | . 4 20 Robot Miss Streak 6 | . 6 3 Penetration Max . | . . . Secondary Targets 1 | . . 1 Max Gunslinging Chain 1 | . . 1 Shots Hit Robots 77 | . 23 54 Core Hits 30 | . 9 21 Critical Kills 1 | . . 1 Critical Parts Destroyed 1 | . 1 . Critical Strikes 4 | . 3 1 Burn 2 | . 2 . Destroy 2 | . 1 1 Melee Attacks . | . . . Impact . | . . . Slashing . | . . . Piercing . | . . . Sneak Attacks . | . . . Combat Hostiles . | . . . Follow-up Attacks . | . . . Damage Inflicted 838 | . 240 598 Guns 838 | . 240 598 Cannons . | . . . Explosions . | . . . Melee . | . . . Ramming . | . . . Kinetic 490 | . 93 397 Thermal 328 | . 147 181 Explosive . | . . . Electromagnetic 20 | . . 20 Impact . | . . . Slashing . | . . . Piercing . | . . . Highest Corruption 1 | . . 1 Average Corruption 1 | . . 1 Corruption Purged . | . . . Corruption Blocked . | . . . Overload Shots . | . . . Overflow Damage . | . . . Projectiles . | . . . Explosions . | . . . Melee . | . . . Knockbacks . | . . . Impact . | . . . Kinetic . | . . . Secondary . | . . . Self-Inflicted Damage . | . . . Shots . | . . . Rammed . | . . . Targets Rammed . | . . . Kicked . | . . . Crushed . | . . . Highest Temperature 252 | . 252 125 Average Temperature 65 | . 91 33 Received Heat Transfer 435 | . 132 303 Siege Activations . | . . . Robots Corrupted . | . . . Combat Hostiles . | . . . Parts Fried . | . . . Impact Corruptions . | . . . Robots Melted . | . . . Combat Hostiles . | . . . Parts Melted . | . . . Heat Transferred 1036 | . 592 444 Parts Sabotaged . | . . . Parts Stolen . | . . . Parts Stripped . | . . . Power Chain Reactions . | . . . Alert | -11 -10 -10 ------- Run | Yrd Mat Min Peak Influence 145 | . 145 121 Initial 56 | . . 56 Average 66 | . 74 68 Maximum Alert Level . | . . . Low Security (%) 100 | 100 100 100 Level 1 . | . . . Level 2 . | . . . Level 3 . | . . . Level 4 . | . . . Level 5 . | . . . High Security . | . . . Max Security . | . . . Squads Dispatched 2 | . 2 . Investigation . | . . . Extermination . | . . . Reinforcement 2 | . 2 . Assault . | . . . Garrison . | . . . Intercept . | . . . Searches Triggered . | . . . Construction Impeded . | . . . Haulers Reinforced . | . . . Active Scanning Responses . | . . . Cargo Convoy Interrupts . | . . . Stealth | -11 -10 -10 --------- Run | Yrd Mat Min Distress Signals . | . . . Communications Jammed . | . . . Distress Signals . | . . . Times Spotted 32 | . 9 23 Peak Tracking Total 13 | . 3 13 Tactical Retreats . | . . . Traps | -11 -10 -10 ------- Run | Yrd Mat Min Traps Triggered . | . . . Indirectly . | . . . Trap Hack Attempts . | . . . Triggered . | . . . Disarmed . | . . . Reprogrammed . | . . . Reused . | . . . Traps Extracted . | . . . Installed . | . . . Triggered . | . . . Machines | -11 -10 -10 ---------- Run | Yrd Mat Min Machines Disabled 1 | . . 1 Max in Single Turn 1 | . . 1 Machines Repaired . | . . . Machines Dismantled . | . . . Machines Sabotaged . | . . . Overloaded Fab Kills . | . . . Hacking | -11 -10 -10 --------- Run | Yrd Mat Min Machines Accessed . | . . . Terminals . | . . . Fabricators . | . . . Repair Stations . | . . . Recycling Units . | . . . Scanalyzers . | . . . Garrison Access . | . . . Total Hacks . | . . . Successful . | . . . Failed . | . . . Catastrophic . | . . . Database Lockouts . | . . . Manual . | . . . Terminals . | . . . Fabricators . | . . . Repair Stations . | . . . Recycling Units . | . . . Scanalyzers . | . . . Garrison Access . | . . . Terminal Hacks . | . . . Fabricator Hacks . | . . . Repair Station Hacks . | . . . Recycling Unit Hacks . | . . . Scanalyzer . | . . . Garrison Access Hacks . | . . . Unauthorized Hacks . | . . . Terminals . | . . . Fabricators . | . . . Repair Stations . | . . . Recycling Units . | . . . Scanalyzers . | . . . Garrison Access . | . . . Data Cores Recovered . | . . . Used . | . . . Hacking Detections . | . . . Full Trace Events . | . . . Feedback Events . | . . . Feedback Blocked . | . . . Robot Schematics Acquired . | . . . Robots Built . | . . . Authchips . | . . . Time . | . . . Total Robot Build Rating . | . . . Part Schematics Acquired . | . . . Parts Built . | . . . Authchips . | . . . Time . | . . . Total Part Build Rating . | . . . Parts Repaired . | . . . Time . | . . . Parts Recycled . | . . . Recycled Matter . | . . . Retrieved Matter . | . . . Retrieved Components . | . . . Parts Scanalyzed . | . . . Part Schematics Acquired . | . . . Parts Damaged . | . . . Bothacking | -11 -10 -10 ------------ Run | Yrd Mat Min Used RIF Installer . | . . . Robots Hacked . | . . . Non-combat . | . . . Combat . | . . . Robot Hacks Applied . | . . . Relay Couplers Released . | . . . Fabnet Peak Effective % . | . . . Robots Rewired . | . . . Allies Hacked . | . . . Hacks Repelled . | . . . Allies | -11 -10 -10 -------- Run | Yrd Mat Min Total Allies . | . . . Largest Group . | . . . Highest-Rated Group . | . . . Highest-Rated Ally . | . . . Total Orders . | . . . Ally Attacks . | . . . Total Damage . | . . . Kills . | . . . Allies Corrupted . | . . . Allies Melted . | . . . Intel | -11 -10 -10 ------- Run | Yrd Mat Min Robot Analysis Total . | . . . Derelict Logs Recovered . | . . . Drone Launches . | . . . Drone Recoveries . | . . . Exploration | -11 -10 -10 ------------- Run | Yrd Mat Min Turns Passed 1322 | 64 233 1025 Spaces Moved 429 | 33 96 300 Core 5 | 2 . 3 Treads 424 | 31 96 297 Legs . | . . . Wheels . | . . . Hover . | . . . Flight . | . . . Fastest Speed 50 | 50 160 160 Average Speed 160 | 153 160 161 Slowest Speed 300 | 160 160 300 Overloaded Moves . | . . . Propulsion Burnouts . | . . . Robots Hopped . | . . . Cave-ins Triggered . | . . . Exploration Rate (%) 24 | 4 22 46 Regions Visited 2 Branch Regions 1 Pre-discovered Areas . | . . . Known Exits Taken . | . . . Unknown Exits Taken 2 | 1 1 . Scrap Searched 1 | . . 1 Spaces Dug . | . . . Terrain Destroyed . | . . . Melee . | . . . Projectile . | . . . AOE . | . . . Terrain Rammed . | . . . Walls Destroyed . | . . . Machines Disabled . | . . . Actions | -11 -10 -10 --------- Run | Yrd Mat Min Total 948 | 44 131 773 Wait 417 | . 7 410 Move 427 | 32 95 300 Hop . | . . . Pick Up 11 | 6 3 2 Fast Attach 14 | 6 . 8 Attach 1 | . . 1 Detach . | . . . Swap 2 | . . 2 Drop 7 | . 1 6 Fire 69 | . 25 44 Melee . | . . . Ram . | . . . Kick . | . . . Crush . | . . . Escape Stasis . | . . . Rewire . | . . . Trap . | . . . Miscellaneous . | . . . Route ------- -11/Scrapyard -10/Materials (discovered 2 exits: [*Min x2]) -10/Mines (discovered 2 exits: [*Mat] / [*Sub]) History --------- Turn | Location | Event 42 | -11/Scrapyard | Discovered new exit (range 16) 65 | -11/Scrapyard | Entered Materials 65 | -10/Materials | Discovered new exit (range 8) 276 | -10/Materials | Discovered new exit (range 12) 298 | -10/Materials | Entered Mines 311 | -10/Mines | Build established: Mutant 409 | -10/Mines | Core integrity fell below 50% 458 | -10/Mines | Lost 3 parts (2n1w) 745 | -10/Mines | Build established: Scavenger-Mutant 1081 | -10/Mines | Discovered new exit (range 3) 1217 | -10/Mines | Discovered new exit (range 9) 1305 | -10/Mines | Assembled infested the area 1320 | -10/Mines | Core integrity fell below 20% 1323 | -10/Mines | Destroyed by D-53 Grenadier with Mini Grenade Launcher Last Messages --------------- 01313_ Acquired Bore Cannon. 01314_ The unstable cave ceiling collapses. 01314_ as-55486 destroyed. 01316_ Lgt. Armor Plating destroyed. 01316_ as-70896 destroyed. 01318_ The unstable cave ceiling collapses. 01319_ as-80641 destroyed. 01320_ The unstable cave ceiling collapses. 01320_ Bore Cannon destroyed. 01320_ Lgt. Treads destroyed. 01320_ System corrupted by crushing effect (+1). 01320_ Imp. Ion Engine destroyed. 01321_ Lgt. Treads destroyed. 01322_ as-12199 destroyed. 01322_ as-05120 destroyed. 01322_ as-23484 destroyed. 01322_ as-72782 destroyed. 01323_ U-05 Engineer lays Concrete. 01323_ as-85631 destroyed. 01323_ Hvy. Assault Rifle destroyed. Map ----- +----------------------------------------------------+ | ?????????????????????????????????????????????? | | ?????????????????????????????????????????????# | | ???#################????????????????????????## | | ???# #???????????????????????## | | ???# #???????????????????????# | | ???# """ """ """ #???????????????????????# | | ???# """ """ """ #???????????????####?????# | | ???# """ """ """ #????????????#### <#??????# | | ???# #????????????# ###??????# | | ???# """ """ #????????????# #???#####? | | ???# """ """ #????????????# #??## ## | | ???# """ """ < #????????????## #### | | ???# " #?????????????# ## # | | ???# """ """ """%"#?????????????### # | | ???# """ """ """" #???????????????## # | | ???# """ """ """ #????????????????### | | ???# #?????????####?????## | | ???# #????????## #??????# [= # | | ???############# ##????????# #??????# ## | | ???????????????# #?????????# #??????# [ #? | | ?????????????###dd#########?# #??????##% ##? | | ????????????### ## #### ##??????#*#### | | ????????????# a # ### #????### # | | ???????????## #????# # " | | ???????????## # #????# ### " | | ???????????# a @ uu #????# #?# " | | ???????????## ## ##????# #?# | | ???????# a ### ##?????# #?# | | ???????# #?#### ######## #?# | | ???????# a #????# %[ #?# | | ??????# a## # #????#! ##########?# | | ??????# ?### #### #????# #??????????#### | | ??????## ????##???# #????# #????????????? | | ???????#### ?????????? #????#%= #???????????? | | ??????????#??????????? ???? #??????????? | | ?????????????????????? ??? ###??????????? | | ??????????????????????##??? ##????????????? | | ??????????????????????????# %= #?????????????? | | ??????????????????????????##! #?????????????? | | ???????????????????????????# #?????????????? | | ???????????????????????????# ?????????????? | | ???????????????????????????# ?????????????? | | ???????????????????????????## ?????????????? | | ?????????????????????????????# ?????????????? | | ?????????????????????????????? ?????????????? | | ?????????????????????????????? ?????????????? | | ?????????????????????????????????????????????? | | ?????????????????????????????????????????????? | | ?????????????????????????????????????????????? | | ?????????????????????????????????????????????? | +----------------------------------------------------+ Best States ------------- Heat Dissipation 39 Energy Generation 12 Energy Capacity 265 Matter Stores 300 Matter Capacity 300 Sight Range 16 Terrain Scan Density 10 Armor Coverage 150 Evasion (%) 40 Recoil Reduction 2 Item Schematics ----------------- None Robot Schematics ------------------ None Fabricated ------------ Nothing Alien Tech Used ----------------- None Achievements -------------- None Challenges ------------ None Game ------ Seed SkeletonLongswordChronowheel Manual? 0 Play Time 00:12:34 Cumulative 22.7 hours Start 2024.06.03 @ 19:28:30 End 2024.06.03 @ 19:40:39 Sessions 1 Manual Loads 0 Difficulty Rogue Special Mode None Game No. 22 Rogue 22 Adventurer 0 Explorer 0 Win Type - Total 0 Types 0/0/0/0/0/0/0/0/0 Lore% 19 Gallery% 27 Achievement% 24 Wizard Run 0 Options --------- Layout 0 ASCII 0 Keyboard 1 Movement Numpad Keybinds 0 Fullscreen 1 Font 24/Cog Map View 76x50 Zoom Use 0% Tactical HUD 1 Map Filters NONE Filters NONE Steam 1 RUN: 6fdb0104-1e53-4616-b898-999e5de95d4b